[Event "Senior Men Russian Championship 2022_HL"]
[Site "Saint-Petersburg, Russia"]
[Date "2022.09.28"]
[Round "5.11"]
[White "Yakovlev, Yuri S."]
[Black "Nikitinyh, Boris"]
[Result "0-1"]
[TimeControl "40+30"]
[WhiteElo "1649"]
[BlackElo "1853"]

1. e4 {[%clk 01:30:50]} {[%emt 00:00:07]} d6 {[%clk 01:30:43]} {[%emt
00:00:18]} 2. d4 {[%clk 01:31:17]} {[%emt 00:00:05]} Nf6 {[%clk 01:30:52]}
{[%emt 00:00:21]} 3. Bd3 {[%clk 01:30:38]} {[%emt 00:01:09]} Nc6 {[%clk
01:29:58]} {[%emt 00:01:24]} 4. c3 {[%clk 01:30:54]} {[%emt 00:00:13]} e5
{[%clk 01:30:08]} {[%emt 00:00:21]} 5. d5 {[%clk 01:30:54]} {[%emt 00:00:30]}
Ne7 {[%clk 01:30:15]} {[%emt 00:00:23]} 6. h3 {[%clk 01:29:11]} {[%emt
00:02:12]} g6 {[%clk 01:28:27]} {[%emt 00:02:19]} 7. Be3 {[%clk 01:28:26]}
{[%emt 00:01:14]} Bg7 {[%clk 01:28:23]} {[%emt 00:00:34]} 8. Qd2 {[%clk
01:28:52]} {[%emt 00:00:05]} h6 {[%clk 01:22:21]} {[%emt 00:06:32]} 9. g4
{[%clk 01:26:44]} {[%emt 00:02:37]} g5 {[%clk 01:20:33]} {[%emt 00:02:18]} 10.
Ne2 {[%clk 01:23:17]} {[%emt 00:03:56]} Ng6 {[%clk 01:20:28]} {[%emt 00:00:36]}
11. Na3 {[%clk 01:23:02]} {[%emt 00:00:46]} Nf4 {[%clk 01:16:40]} {[%emt
00:04:18]} 12. Bxf4 {[%clk 01:21:04]} {[%emt 00:02:27]} gxf4 {[%clk 01:16:51]}
{[%emt 00:00:20]} 13. f3 {[%clk 01:21:16]} {[%emt 00:00:18]} Nh7 {[%clk
01:14:42]} {[%emt 00:02:39]} 14. O-O-O {[%clk 01:18:03]} {[%emt 00:03:43]} Bf6
{[%clk 01:14:21]} {[%emt 00:00:50]} 15. Bb5+ {[%clk 01:15:51]} {[%emt
00:02:42]} Kf8 {[%clk 01:14:13]} {[%emt 00:00:39]} 16. Ng1 {[%clk 01:11:58]}
{[%emt 00:04:23]} a6 {[%clk 01:13:29]} {[%emt 00:01:14]} 17. Bf1 {[%clk
01:11:38]} {[%emt 00:00:49]} Bh4 {[%clk 01:12:34]} {[%emt 00:01:24]} 18. Rh2
{[%clk 01:09:53]} {[%emt 00:02:16]} Kg7 {[%clk 01:09:02]} {[%emt 00:04:03]} 19.
Kb1 {[%clk 01:09:50]} {[%emt 00:00:33]} Qe7 {[%clk 01:08:36]} {[%emt 00:00:55]}
20. c4 {[%clk 01:08:49]} {[%emt 00:01:31]} Rd8 {[%clk 01:08:05]} {[%emt
00:01:01]} 21. Nc2 {[%clk 01:08:39]} {[%emt 00:00:40]} Bd7 {[%clk 01:06:54]}
{[%emt 00:01:38]} 22. Ne1 {[%clk 01:08:30]} {[%emt 00:00:41]} c5 {[%clk
01:03:31]} {[%emt 00:03:54]} 23. Nd3 {[%clk 00:59:59]} {[%emt 00:09:00]} b5
{[%clk 01:03:05]} {[%emt 00:00:56]} 24. Qc3 {[%clk 01:00:00]} {[%emt 00:00:29]}
Bf6 {[%clk 00:57:44]} {[%emt 00:05:51]} 25. cxb5 {[%clk 00:58:37]} {[%emt
00:01:54]} axb5 {[%clk 00:57:48]} {[%emt 00:00:25]} 26. h4 {[%clk 00:58:17]}
{[%emt 00:00:50]} b4 {[%clk 00:54:29]} {[%emt 00:03:50]} 27. Qe1 {[%clk
00:58:30]} {[%emt 00:00:15]} Rdb8 {[%clk 00:48:32]} {[%emt 00:06:27]} 28. g5
{[%clk 00:57:39]} {[%emt 00:01:22]} hxg5 {[%clk 00:48:21]} {[%emt 00:00:42]} 29.
hxg5 {[%clk 00:57:32]} {[%emt 00:00:37]} Nxg5 {[%clk 00:47:40]} {[%emt
00:01:10]} 30. Nf2 {[%clk 00:45:17]} {[%emt 00:12:46]} Rh8 {[%clk 00:45:55]}
{[%emt 00:02:14]} 31. Rxh8 {[%clk 00:44:41]} {[%emt 00:01:05]} Rxh8 {[%clk
00:45:37]} {[%emt 00:00:48]} 32. Ng4 {[%clk 00:43:54]} {[%emt 00:01:18]} Nxf3
{[%clk 00:39:35]} {[%emt 00:06:33]} 33. Nxf3 {[%clk 00:44:19]} {[%emt
00:00:04]} Bxg4 {[%clk 00:39:46]} {[%emt 00:00:19]} 34. Be2 {[%clk 00:44:05]}
{[%emt 00:00:44]} Bxf3 {[%clk 00:34:35]} {[%emt 00:05:42]} 35. Bxf3 {[%clk
00:44:32]} {[%emt 00:00:03]} Rh3 {[%clk 00:33:12]} {[%emt 00:01:53]} 36. Qe2
{[%clk 00:39:05]} {[%emt 00:05:58]} Rg3 {[%clk 00:32:23]} {[%emt 00:01:18]} 37.
Rf1 {[%clk 00:37:43]} {[%emt 00:01:51]} Qd7 {[%clk 00:26:04]} {[%emt 00:06:50]}
38. Rh1 {[%clk 00:35:09]} {[%emt 00:03:03]} Kf8 {[%clk 00:25:13]} {[%emt
00:01:22]} 39. b3 {[%clk 00:29:08]} {[%emt 00:06:31]} Ke7 {[%clk 00:18:24]}
{[%emt 00:07:20]} 40. Qf1 {[%clk 00:55:47]} {[%emt 00:03:50]} Qe8 {[%clk
00:48:35]} {[%emt 00:00:20]} 41. Kb2 {[%clk 00:49:56]} {[%emt 00:06:20]} Qa8
{[%clk 00:48:31]} {[%emt 00:00:34]} 42. Bd1 {[%clk 00:39:27]} {[%emt 00:10:59]}
Qa7 {[%clk 00:47:33]} {[%emt 00:01:28]} 43. Bc2 {[%clk 00:36:22]} {[%emt
00:03:34]} Bg5 {[%clk 00:45:28]} {[%emt 00:02:34]} 44. a4 {[%clk 00:32:51]}
{[%emt 00:04:02]} bxa3+ {[%clk 00:44:39]} {[%emt 00:01:19]} 45. Ka2 {[%clk
00:33:18]} {[%emt 00:00:02]} Rc3 {[%clk 00:43:14]} {[%emt 00:01:55]} 46. Rh2
{[%clk 00:31:32]} {[%emt 00:02:16]} f3 {[%clk 00:40:33]} {[%emt 00:03:11]} 47.
Qb5 {[%clk 00:28:32]} {[%emt 00:03:29]} Bf4 {[%clk 00:39:14]} {[%emt 00:01:49]}
48. Rh8 {[%clk 00:27:11]} {[%emt 00:01:51]} Rxc2+ {[%clk 00:39:02]} {[%emt
00:00:43]} 49. Ka1 {[%clk 00:27:39]} {[%emt 00:00:02]} c4 {[%clk 00:33:17]}
{[%emt 00:06:15]} 0-1

[Event "Senior Men Russian Championship 2022_HL"]
[Site "Saint-Petersburg, Russia"]
[Date "2022.09.29"]
[Round "6.11"]
[White "Pushkov, Nikolai"]
[Black "Yakovlev, Yuri S."]
[Result "1-0"]
[TimeControl "40+30"]
[WhiteElo "2206"]
[BlackElo "1649"]

1. d4 {[%clk 01:30:58]} {[%emt 00:00:02]} c5 {[%clk 01:30:59]} {[%emt
00:00:02]} 2. d5 {[%clk 01:31:26]} {[%emt 00:00:01]} d6 {[%clk 01:31:28]} 3. e4
{[%clk 01:31:55]} {[%emt 00:00:02]} g6 {[%clk 01:31:56]} {[%emt 00:00:01]} 4.
Nf3 {[%clk 01:32:22]} {[%emt 00:00:03]} Bg7 {[%clk 01:32:25]} {[%emt 00:00:02]}
5. Bb5+ {[%clk 01:32:51]} {[%emt 00:00:02]} Bd7 {[%clk 01:32:53]} 6. a4 {[%clk
01:33:18]} {[%emt 00:00:03]} a6 {[%clk 01:33:23]} {[%emt 00:00:01]} 7. Be2
{[%clk 01:33:44]} {[%emt 00:00:02]} h6 {[%clk 01:33:51]} {[%emt 00:00:03]} 8.
O-O {[%clk 01:34:12]} {[%emt 00:00:03]} Nf6 {[%clk 01:34:20]} {[%emt 00:00:01]}
9. Nc3 {[%clk 01:34:38]} {[%emt 00:00:04]} O-O {[%clk 01:34:48]} {[%emt
00:00:01]} 10. Nd2 {[%clk 01:35:05]} {[%emt 00:00:03]} Nh7 {[%clk 01:35:16]}
{[%emt 00:00:02]} 11. Nc4 {[%clk 01:35:31]} {[%emt 00:00:03]} f5 {[%clk
01:35:43]} {[%emt 00:00:04]} 12. f3 {[%clk 01:36:00]} {[%emt 00:00:01]} Bd4+
{[%clk 01:36:12]} 13. Be3 {[%clk 01:36:28]} {[%emt 00:00:03]} Bxe3+ {[%clk
01:36:40]} 14. Nxe3 {[%clk 01:36:56]} {[%emt 00:00:01]} f4 {[%clk 01:37:04]}
{[%emt 00:00:07]} 15. Nc4 {[%clk 01:37:25]} {[%emt 00:00:01]} Ng5 {[%clk
01:37:32]} {[%emt 00:00:02]} 16. e5 {[%clk 01:37:53]} {[%emt 00:00:03]} Bf5
{[%clk 01:37:59]} 17. Bd3 {[%clk 01:38:21]} {[%emt 00:00:02]} Kg7 {[%clk
01:38:27]} {[%emt 00:00:03]} 18. e6 {[%clk 01:38:50]} a5 {[%clk 01:38:56]} 19.
Ne4 {[%clk 01:39:17]} {[%emt 00:00:02]} Na6 {[%clk 01:39:25]} {[%emt 00:00:02]}
20. Nxg5 {[%clk 01:39:45]} {[%emt 00:00:03]} hxg5 {[%clk 01:39:53]} {[%emt
00:00:01]} 21. c3 {[%clk 01:40:13]} {[%emt 00:00:03]} Nc7 {[%clk 01:40:21]} 22.
Nb6 {[%clk 01:40:41]} {[%emt 00:00:02]} Bxd3 {[%clk 01:40:50]} {[%emt
00:00:02]} 23. Qxd3 {[%clk 01:41:09]} {[%emt 00:00:01]} Ra6 {[%clk 01:41:18]}
{[%emt 00:00:03]} 24. Nd7 {[%clk 01:41:37]} Rf5 {[%clk 01:41:45]} {[%emt
00:00:03]} 25. c4 {[%clk 01:42:06]} {[%emt 00:00:02]} Ne8 {[%clk 01:42:13]}
{[%emt 00:00:01]} 26. g4 {[%clk 01:42:34]} {[%emt 00:00:02]} fxg3 {[%clk
01:42:41]} {[%emt 00:00:03]} 27. hxg3 {[%clk 01:43:03]} Nf6 {[%clk 01:43:08]}
{[%emt 00:00:04]} 28. Nxf6 {[%clk 01:43:31]} {[%emt 00:00:02]} Rxf6 {[%clk
01:43:35]} {[%emt 00:00:03]} 29. Kg2 {[%clk 01:43:58]} {[%emt 00:00:02]} Ra8
{[%clk 01:44:04]} 30. Qe3 {[%clk 01:44:24]} {[%emt 00:00:03]} Qb6 {[%clk
01:44:33]} {[%emt 00:00:02]} 31. Rab1 {[%clk 01:44:53]} {[%emt 00:00:02]} Qb4
{[%clk 01:45:01]} {[%emt 00:00:02]} 32. b3 {[%clk 01:45:21]} {[%emt 00:00:01]}
Rf5 {[%clk 01:45:29]} {[%emt 00:00:02]} 33. f4 {[%clk 01:45:48]} {[%emt
00:00:03]} g4 {[%clk 01:45:58]} 34. Rh1 {[%clk 01:46:16]} {[%emt 00:00:02]} Rh8
{[%clk 01:46:26]} {[%emt 00:00:02]} 35. Rxh8 {[%clk 01:46:44]} {[%emt
00:00:02]} Kxh8 {[%clk 01:46:54]} {[%emt 00:00:01]} 36. Rh1+ {[%clk 01:47:13]}
{[%emt 00:00:02]} Kg7 {[%clk 01:47:22]} {[%emt 00:00:03]} 37. Qd3 {[%clk
01:47:42]} {[%emt 00:00:01]} Rh5 {[%clk 01:47:50]} {[%emt 00:00:02]} 38. Rf1
{[%clk 01:48:10]} {[%emt 00:00:02]} Rf5 {[%clk 01:48:18]} {[%emt 00:00:02]} 39.
Rd1 {[%clk 01:48:39]} {[%emt 00:00:02]} Kf6 {[%clk 01:48:47]} {[%emt 00:00:01]}
40. Qc2 {[%clk 02:19:07]} Kg7 {[%clk 02:19:16]} {[%emt 00:00:02]} 41. Rf1
{[%clk 02:19:36]} Rf6 {[%clk 02:19:43]} {[%emt 00:00:03]} 42. Qb2 {[%clk
02:20:05]} Kg8 {[%clk 02:20:12]} 43. Rh1 {[%clk 02:20:33]} {[%emt 00:00:02]}
Kg7 {[%clk 02:20:41]} {[%emt 00:00:01]} 44. Kf2 {[%clk 02:21:01]} {[%emt
00:00:03]} Kg8 {[%clk 02:21:10]} 45. Rh4 {[%clk 02:21:29]} {[%emt 00:00:02]} b5
{[%clk 02:21:37]} {[%emt 00:00:02]} 46. Qc2 {[%clk 02:21:58]} {[%emt 00:00:01]}
bxc4 {[%clk 02:22:06]} {[%emt 00:00:02]} 47. bxc4 {[%clk 02:22:26]} {[%emt
00:00:02]} Qa3 {[%clk 02:22:33]} {[%emt 00:00:03]} 48. Rxg4 {[%clk 02:22:54]}
Qa1 {[%clk 02:23:01]} {[%emt 00:00:02]} 49. Rxg6+ {[%clk 02:23:23]} {[%emt
00:00:02]} Kf8 {[%clk 02:23:29]} {[%emt 00:00:02]} 50. Rxf6+ {[%clk 02:23:52]}
{[%emt 00:00:01]} exf6 {[%clk 02:23:56]} {[%emt 00:00:03]} 51. Qh7 {[%clk
02:24:20]} {[%emt 00:00:01]} Qd4+ {[%clk 02:24:24]} {[%emt 00:00:03]} 52. Kg2
{[%clk 02:24:49]} {[%emt 00:00:01]} 1-0

[Event "Senior Men Russian Championship 2022_HL"]
[Site "Saint-Petersburg, Russia"]
[Date "2022.09.29"]
[Round "6.7"]
[White "Dragomarezkij, Evgeni"]
[Black "Kornilov, Anatoly"]
[Result "1-0"]
[TimeControl "40+30"]
[WhiteElo "2297"]
[BlackElo "2094"]

1. c4 {[%clk 01:30:59]} c5 {[%clk 01:30:59]} {[%emt 00:00:02]} 2. Nf3 {[%clk
01:31:28]} {[%emt 00:00:01]} g6 {[%clk 01:31:28]} {[%emt 00:00:01]} 3. d4
{[%clk 01:31:56]} {[%emt 00:00:02]} cxd4 {[%clk 01:31:57]} {[%emt 00:00:01]} 4.
Nxd4 {[%clk 01:32:25]} {[%emt 00:00:02]} Bg7 {[%clk 01:32:24]} {[%emt
00:00:02]} 5. e4 {[%clk 01:32:53]} {[%emt 00:00:02]} Nc6 {[%clk 01:32:53]}
{[%emt 00:00:01]} 6. Be3 {[%clk 01:33:22]} {[%emt 00:00:01]} Nf6 {[%clk
01:33:22]} {[%emt 00:00:02]} 7. Nc3 {[%clk 01:33:50]} {[%emt 00:00:01]} O-O
{[%clk 01:33:50]} {[%emt 00:00:02]} 8. Be2 {[%clk 01:34:18]} {[%emt 00:00:02]}
d6 {[%clk 01:34:18]} {[%emt 00:00:02]} 9. O-O {[%clk 01:34:46]} {[%emt
00:00:02]} Bd7 {[%clk 01:34:47]} {[%emt 00:00:01]} 10. Nb3 {[%clk 01:35:15]}
{[%emt 00:00:02]} a5 {[%clk 01:35:16]} 11. a4 {[%clk 01:35:43]} {[%emt
00:00:02]} Nb4 {[%clk 01:35:45]} 12. f3 {[%clk 01:36:11]} {[%emt 00:00:02]} Bc6
{[%clk 01:36:14]} 13. Nd5 {[%clk 01:36:40]} {[%emt 00:00:02]} Bxd5 {[%clk
01:36:42]} {[%emt 00:00:02]} 14. exd5 {[%clk 01:37:08]} {[%emt 00:00:02]} Nd7
{[%clk 01:37:10]} {[%emt 00:00:02]} 15. Rb1 {[%clk 01:37:36]} {[%emt 00:00:02]}
b6 {[%clk 01:37:39]} 16. Nd4 {[%clk 01:38:04]} {[%emt 00:00:02]} Nc5 {[%clk
01:38:07]} {[%emt 00:00:02]} 17. Re1 {[%clk 01:38:33]} {[%emt 00:00:01]} Re8
{[%clk 01:38:36]} {[%emt 00:00:01]} 18. Bf1 {[%clk 01:39:01]} {[%emt 00:00:02]}
e5 {[%clk 01:39:04]} {[%emt 00:00:02]} 19. dxe6 {[%clk 01:39:29]} {[%emt
00:00:02]} Nxe6 {[%clk 01:39:33]} {[%emt 00:00:02]} 20. Nxe6 {[%clk 01:39:57]}
{[%emt 00:00:01]} Rxe6 {[%clk 01:40:01]} {[%emt 00:00:02]} 21. Bf2 {[%clk
01:40:25]} {[%emt 00:00:02]} Rxe1 {[%clk 01:40:28]} {[%emt 00:00:03]} 22. Qxe1
{[%clk 01:40:52]} {[%emt 00:00:02]} Qc7 {[%clk 01:40:58]} {[%emt 00:00:02]} 23.
Qe3 {[%clk 01:41:20]} {[%emt 00:00:02]} Rb8 {[%clk 01:41:26]} {[%emt 00:00:01]}
24. b3 {[%clk 01:41:48]} {[%emt 00:00:02]} Na6 {[%clk 01:41:55]} {[%emt
00:00:02]} 25. Bd3 {[%clk 01:42:16]} {[%emt 00:00:01]} Nc5 {[%clk 01:42:22]}
{[%emt 00:00:02]} 26. Bc2 {[%clk 01:42:45]} {[%emt 00:00:02]} Qc6 {[%clk
01:42:51]} 27. Rd1 {[%clk 01:43:13]} {[%emt 00:00:02]} Rd8 {[%clk 01:43:20]} 28.
Qe7 {[%clk 01:43:40]} {[%emt 00:00:03]} Qd7 {[%clk 01:43:40]} {[%emt 00:00:10]}
29. Bh4 {[%clk 01:44:09]} {[%emt 00:00:02]} Ne6 {[%clk 01:44:07]} {[%emt
00:00:02]} 30. Qxd7 {[%clk 01:44:37]} Rxd7 {[%clk 01:44:36]} {[%emt 00:00:02]}
31. Bf2 {[%clk 01:45:02]} {[%emt 00:00:05]} Nc5 {[%clk 01:45:05]} {[%emt
00:00:01]} 32. g4 {[%clk 01:45:30]} {[%emt 00:00:02]} Be5 {[%clk 01:45:33]}
{[%emt 00:00:03]} 33. Be3 {[%clk 01:45:59]} f6 {[%clk 01:46:01]} {[%emt
00:00:02]} 34. f4 {[%clk 01:46:27]} {[%emt 00:00:01]} Bc3 {[%clk 01:46:28]}
{[%emt 00:00:02]} 35. Kf2 {[%clk 01:46:56]} {[%emt 00:00:02]} Kg7 {[%clk
01:46:57]} 36. Kf3 {[%clk 01:46:56]} Kf7 {[%clk 01:46:57]} 37. h4 {[%clk
01:46:56]} h6 {[%clk 01:47:25]} {[%emt 00:00:05]} 38. Bf2 {[%clk 01:48:10]}
{[%emt 00:00:15]} g5 {[%clk 01:48:23]} 39. Bg3 {[%clk 01:48:10]} gxh4 {[%clk
01:48:23]} 40. Bxh4 {[%clk 01:48:10]} Kg7 {[%clk 01:48:23]} 41. Bf2 {[%clk
02:19:34]} {[%emt 00:01:22]} Rd8 {[%clk 02:18:35]} {[%emt 00:00:03]} 42. Be3
{[%clk 02:20:01]} {[%emt 00:00:03]} Rd7 {[%clk 02:19:04]} {[%emt 00:00:02]} 43.
Rd5 {[%clk 02:20:29]} {[%emt 00:00:01]} Rd8 {[%clk 02:19:32]} {[%emt 00:00:02]}
44. Kf2 {[%clk 02:20:31]} {[%emt 00:00:28]} Bb2 {[%clk 02:20:00]} {[%emt
00:00:02]} 45. Rh5 {[%clk 02:20:59]} {[%emt 00:00:03]} Bc3 {[%clk 02:20:28]}
{[%emt 00:00:01]} 46. Ke2 {[%clk 02:21:24]} {[%emt 00:00:05]} Re8 {[%clk
02:20:57]} 47. Kf3 {[%clk 02:21:50]} {[%emt 00:00:04]} Rd8 {[%clk 02:21:26]} 48.
Rh3 {[%clk 02:22:12]} {[%emt 00:00:08]} Bb2 {[%clk 02:21:53]} {[%emt 00:00:03]}
49. Ke2 {[%clk 02:22:40]} {[%emt 00:00:02]} Ba1 {[%clk 02:22:22]} {[%emt
00:00:02]} 50. Kf3 {[%clk 02:23:08]} {[%emt 00:00:01]} Bb2 {[%clk 02:22:51]} 51.
g5 {[%clk 02:23:35]} {[%emt 00:00:03]} fxg5 {[%clk 02:23:19]} {[%emt 00:00:02]}
52. fxg5 {[%clk 02:24:03]} {[%emt 00:00:02]} hxg5 {[%clk 02:23:47]} {[%emt
00:00:02]} 53. Bxg5 {[%clk 02:24:31]} {[%emt 00:00:03]} Rf8+ {[%clk 02:24:14]}
{[%emt 00:00:02]} 54. Ke2 {[%clk 02:25:00]} {[%emt 00:00:02]} Re8+ {[%clk
02:24:43]} 55. Kd2 {[%clk 02:25:28]} {[%emt 00:00:02]} Ne4+ {[%clk 02:25:11]}
56. Bxe4 {[%clk 02:25:56]} {[%emt 00:00:02]} Rxe4 {[%clk 02:25:39]} {[%emt
00:00:02]} 57. Kd3 {[%clk 02:26:23]} {[%emt 00:00:03]} Re8 {[%clk 02:26:07]} 58.
Be3 {[%clk 02:26:52]} {[%emt 00:00:02]} Rb8 {[%clk 02:26:36]} {[%emt 00:00:01]}
59. Bd4+ {[%clk 02:27:20]} {[%emt 00:00:02]} Bxd4 {[%clk 02:27:05]} {[%emt
00:00:02]} 60. Kxd4 {[%clk 02:27:47]} {[%emt 00:00:02]} 1-0

[Event "Senior Men Russian Championship 2022_HL"]
[Site "Saint-Petersburg, Russia"]
[Date "2022.09.29"]
[Round "6.8"]
[White "Lisenko, Alexander V"]
[Black "Raetsky, Alexander"]
[Result "1-0"]
[TimeControl "40+30"]
[WhiteElo "2307"]
[BlackElo "2384"]

1. c4 {[%clk 01:30:59]} e5 {[%clk 01:30:59]} {[%emt 00:00:02]} 2. Nf3 {[%clk
01:31:26]} {[%emt 00:00:01]} e4 {[%clk 01:31:28]} {[%emt 00:00:02]} 3. Nd4
{[%clk 01:31:55]} {[%emt 00:00:02]} Nc6 {[%clk 01:31:56]} {[%emt 00:00:01]} 4.
Nc2 {[%clk 01:32:23]} {[%emt 00:00:02]} d5 {[%clk 01:32:25]} 5. cxd5 {[%clk
01:32:52]} {[%emt 00:00:02]} Qxd5 {[%clk 01:32:53]} {[%emt 00:00:01]} 6. Nc3
{[%clk 01:33:19]} {[%emt 00:00:03]} Qe5 {[%clk 01:33:22]} 7. g3 {[%clk
01:33:47]} {[%emt 00:00:02]} Nf6 {[%clk 01:33:51]} {[%emt 00:00:01]} 8. Bg2
{[%clk 01:34:16]} {[%emt 00:00:02]} Bf5 {[%clk 01:34:19]} {[%emt 00:00:02]} 9.
Ne3 {[%clk 01:34:44]} {[%emt 00:00:02]} Bg6 {[%clk 01:34:47]} {[%emt 00:00:01]}
10. Qa4 {[%clk 01:35:12]} {[%emt 00:00:02]} O-O-O {[%clk 01:35:15]} {[%emt
00:00:02]} 11. d3 {[%clk 01:35:41]} {[%emt 00:00:01]} exd3 {[%clk 01:35:43]}
{[%emt 00:00:02]} 12. Bxc6 {[%clk 01:36:09]} {[%emt 00:00:03]} bxc6 {[%clk
01:36:11]} {[%emt 00:00:02]} 13. Qa6+ {[%clk 01:36:37]} {[%emt 00:00:02]} Kd7
{[%clk 01:36:40]} 14. Nc4 {[%clk 01:37:04]} {[%emt 00:00:02]} Qe6 {[%clk
01:37:09]} {[%emt 00:00:01]} 15. Bf4 {[%clk 01:37:32]} {[%emt 00:00:02]} Nd5
{[%clk 01:37:35]} {[%emt 00:00:04]} 16. Ne5+ {[%clk 01:38:01]} {[%emt
00:00:01]} Ke8 {[%clk 01:38:03]} {[%emt 00:00:03]} 17. Qxc6+ {[%clk 01:38:29]}
{[%emt 00:00:02]} Qxc6 {[%clk 01:38:31]} {[%emt 00:00:03]} 18. Nxc6 {[%clk
01:38:58]} Nxc3 {[%clk 01:38:57]} {[%emt 00:00:03]} 19. bxc3 {[%clk 01:39:24]}
{[%emt 00:00:05]} Be4 {[%clk 01:39:25]} {[%emt 00:00:02]} 20. Nxd8 {[%clk
01:39:52]} {[%emt 00:00:02]} Bxh1 {[%clk 01:39:52]} {[%emt 00:00:02]} 21. Kd2
{[%clk 01:40:20]} {[%emt 00:00:03]} Kxd8 {[%clk 01:40:20]} {[%emt 00:00:01]} 22.
Rxh1 {[%clk 01:40:48]} {[%emt 00:00:03]} dxe2 {[%clk 01:40:46]} {[%emt
00:00:03]} 23. Rb1 {[%clk 01:41:13]} {[%emt 00:00:06]} Kc8 {[%clk 01:41:15]}
{[%emt 00:00:01]} 24. Be3 {[%clk 01:41:41]} {[%emt 00:00:01]} c5 {[%clk
01:41:41]} {[%emt 00:00:04]} 25. Bf4 {[%clk 01:42:10]} {[%emt 00:00:02]} f6
{[%clk 01:42:10]} {[%emt 00:00:02]} 26. Rb8+ {[%clk 01:42:38]} {[%emt
00:00:01]} Kd7 {[%clk 01:42:38]} {[%emt 00:00:02]} 27. Kxe2 {[%clk 01:43:05]}
{[%emt 00:00:03]} g5 {[%clk 01:43:07]} 28. Be3 {[%clk 01:43:32]} {[%emt
00:00:02]} Kc6 {[%clk 01:43:28]} {[%emt 00:00:09]} 29. Ra8 {[%clk 01:44:01]} h6
{[%clk 01:43:54]} {[%emt 00:00:05]} 30. Kd3 {[%clk 01:44:27]} {[%emt 00:00:03]}
f5 {[%clk 01:44:21]} {[%emt 00:00:03]} 31. Kc4 {[%clk 01:44:56]} {[%emt
00:00:01]} Bg7 {[%clk 01:44:45]} {[%emt 00:00:07]} 32. Rxa7 {[%clk 01:45:20]}
{[%emt 00:00:06]} Be5 {[%clk 01:45:14]} 33. Bxc5 {[%clk 01:45:49]} {[%emt
00:00:01]} f4 {[%clk 01:45:41]} {[%emt 00:00:03]} 34. Bd4 {[%clk 01:46:18]} Re8
{[%clk 01:46:08]} {[%emt 00:00:03]} 35. Rh7 {[%clk 01:46:46]} Bxd4 {[%clk
01:46:34]} {[%emt 00:00:04]} 36. cxd4 {[%clk 01:47:15]} {[%emt 00:00:03]} Re2
{[%clk 01:47:02]} {[%emt 00:00:02]} 37. d5+ {[%clk 01:47:40]} {[%emt 00:00:03]}
Kb6 {[%clk 01:47:25]} {[%emt 00:00:02]} 38. Rxh6+ {[%clk 01:48:09]} {[%emt
00:00:08]} Kc7 {[%clk 01:47:48]} {[%emt 00:00:07]} 39. Rh7+ {[%clk 01:48:38]}
Kd6 {[%clk 01:48:16]} {[%emt 00:00:02]} 40. Rh6+ {[%clk 02:19:06]} {[%emt
00:00:02]} Kd7 {[%clk 02:18:44]} 41. f3 {[%clk 02:19:34]} {[%emt 00:00:03]}
Rxa2 {[%clk 02:19:13]} {[%emt 00:00:02]} 42. gxf4 {[%clk 02:20:02]} {[%emt
00:00:02]} Ra4+ {[%clk 02:19:39]} {[%emt 00:00:02]} 43. Kc5 {[%clk 02:20:31]}
{[%emt 00:00:03]} Rxf4 {[%clk 02:20:02]} {[%emt 00:00:03]} 44. Rh7+ {[%clk
02:20:59]} {[%emt 00:00:05]} Ke8 {[%clk 02:20:30]} 45. Rh3 {[%clk 02:21:28]}
{[%emt 00:00:02]} g4 {[%clk 02:20:58]} {[%emt 00:00:02]} 46. fxg4 {[%clk
02:21:57]} {[%emt 00:00:02]} Rxg4 {[%clk 02:21:27]} {[%emt 00:00:01]} 47. Kc6
{[%clk 02:22:23]} {[%emt 00:00:04]} Rg2 {[%clk 02:21:54]} 48. Rh8+ {[%clk
02:22:52]} {[%emt 00:00:03]} Kf7 {[%clk 02:22:23]} 49. d6 {[%clk 02:22:50]}
{[%emt 00:00:02]} Rb2 {[%clk 02:22:51]} {[%emt 00:00:02]} 50. Kd7 {[%clk
02:23:46]} {[%emt 00:00:03]} Ra2 {[%clk 02:23:19]} {[%emt 00:00:01]} 51. h4
{[%clk 02:24:14]} {[%emt 00:00:03]} Ra5 {[%clk 02:23:46]} {[%emt 00:00:03]} 52.
Kc6 {[%clk 02:24:43]} {[%emt 00:00:02]} 1-0

[Event "Senior Men Russian Championship 2022_HL"]
[Site "Saint-Petersburg, Russia"]
[Date "2022.09.29"]
[Round "6.2"]
[White "Pozin, Sergey"]
[Black "Ponfilenok, Vladimir"]
[Result "0-1"]
[TimeControl "40+30"]
[WhiteElo "2257"]
[BlackElo "2298"]

1. Nf3 {[%clk 01:30:58]} {[%emt 00:00:02]} f5 {[%clk 01:30:58]} {[%emt
00:00:02]} 2. g3 {[%clk 01:31:26]} {[%emt 00:00:02]} Nf6 {[%clk 01:31:20]}
{[%emt 00:00:07]} 3. Bg2 {[%clk 01:31:54]} {[%emt 00:00:03]} e6 {[%clk
01:31:48]} {[%emt 00:00:02]} 4. O-O {[%clk 01:32:21]} {[%emt 00:00:02]} d5
{[%clk 01:32:16]} {[%emt 00:00:03]} 5. c4 {[%clk 01:32:50]} {[%emt 00:00:02]}
Bd6 {[%clk 01:32:45]} 6. b3 {[%clk 01:33:18]} {[%emt 00:00:02]} O-O {[%clk
01:33:12]} {[%emt 00:00:02]} 7. Bb2 {[%clk 01:33:46]} {[%emt 00:00:02]} Nbd7
{[%clk 01:33:40]} {[%emt 00:00:03]} 8. Nc3 {[%clk 01:34:13]} {[%emt 00:00:03]}
c6 {[%clk 01:34:08]} {[%emt 00:00:02]} 9. Qc2 {[%clk 01:34:41]} {[%emt
00:00:02]} Qe8 {[%clk 01:34:37]} 10. d3 {[%clk 01:35:08]} {[%emt 00:00:02]} f4
{[%clk 01:35:04]} {[%emt 00:00:03]} 11. gxf4 {[%clk 01:35:37]} {[%emt
00:00:02]} Bxf4 {[%clk 01:35:31]} {[%emt 00:00:03]} 12. Ba3 {[%clk 01:36:02]}
{[%emt 00:00:05]} Qh5 {[%clk 01:36:00]} {[%emt 00:00:01]} 13. Bxf8 {[%clk
01:36:28]} {[%emt 00:00:04]} Ne5 {[%clk 01:36:28]} {[%emt 00:00:01]} 14. Rfe1
{[%clk 01:36:53]} {[%emt 00:00:05]} Nxf3+ {[%clk 01:36:56]} {[%emt 00:00:01]}
15. Bxf3 {[%clk 01:37:20]} {[%emt 00:00:04]} Qxh2+ {[%clk 01:37:23]} {[%emt
00:00:03]} 16. Kf1 {[%clk 01:37:45]} {[%emt 00:00:04]} Be3 {[%clk 01:37:50]}
{[%emt 00:00:04]} 17. Nd1 {[%clk 01:38:12]} {[%emt 00:00:03]} e5 {[%clk
01:38:17]} {[%emt 00:00:03]} 0-1